bitfinex/quotes_SOLUSD_20260310
["timestamp","ask_amount","ask_price","bid_price","bid_amount"]
[1773143907476,0.936886,86.9,86.881,0.46867799]
[1773143910273,0.936886,86.9,86.882,11.50986395]
[1773143913777,0.936886,86.9,86.877,0.45716589]
[1773143914158,0.86970456,86.899,86.877,0.45716589]
[1773143914377,0.86970456,86.899,86.872,0.4555899]
[1773143915887,0.86970456,86.897,86.873,11.51105636]
[1773143916259,0.86970456,86.897,86.874,0.45250594]
[1773143917375,0.86970456,86.897,86.876,0.45099946]
[1773143917986,0.86970456,86.897,86.875,11.51079136]
[1773143918371,0.86970456,86.897,86.876,0.44949337]
[1773143918780,0.86970456,86.896,86.876,0.44949337]
[1773143919767,0.86970456,86.896,86.875,11.51079136]
[1773143919966,0.86970456,86.889,86.861,0.44801168]
[1773143920275,0.86970456,86.889,86.857,11.51317683]
[1773143921086,0.86970456,86.887,86.858,0.44654921]
[1773143921795,4.07102495,86.92,86.851,40.29890271]
[1773143921796,0.86970456,86.916,86.88,4.07102495]
[1773143921969,11.5043026,86.924,86.86,4.07102495]
[1773143921970,4.07102495,86.9,86.86,4.07102495]
[1773143922174,0.86970456,86.899,86.867,0.44510266]
[1773143922593,4.07102495,86.91,86.881,0.443672]
[1773143922886,0.86970456,86.909,86.871,0.443672]
[1773143923280,0.86970456,86.907,86.873,0.44225931]
[1773143927182,0.87269581,86.905,86.875,0.43675367]
[1773143930498,0.87269581,86.903,86.877,0.43150573]
[1773143930701,0.87269581,86.903,86.881,0.43150573]
[1773143930888,0.87269581,86.908,86.881,0.43150573]
[1773143931803,0.87269581,86.908,86.883,0.43022327]
[1773143934796,11.50618777,86.91,86.882,11.50986395]
[1773143934797,0.87269581,86.906,86.882,11.50986395]
[1773143935105,0.87269581,86.906,86.878,11.9368536]
[1773143937606,0.87269581,86.889,86.851,0.42288027]
[1773143937791,0.87269581,86.879,86.852,0.42288027]
[1773143937991,0.87269581,86.889,86.852,0.42288027]
[1773143938406,0.87269581,86.889,86.851,40.29890271]
[1773143938407,0.87269581,86.889,86.861,0.42170913]
[1773143939208,0.87269581,86.889,86.863,0.42055174]
[1773143939705,0.87269581,86.894,86.863,0.42055174]
[1773143939901,0.87269581,86.894,86.871,0.42055174]
[1773143940504,0.87269581,86.894,86.87,4.07102495]
[1773143940505,11.50496439,86.919,86.881,0.41939889]
[1773143940692,0.87269581,86.918,86.891,0.41939889]
[1773143940891,0.87269581,86.909,86.876,0.41939889]
[1773143942909,0.87269581,86.907,86.877,11.51052637]
[1773143943293,0.87269581,86.899,86.877,11.51052637]
[1773143943801,0.87269581,86.899,86.872,11.51107117]
[1773143944009,0.85538965,86.889,86.864,11.51224903]
[1773143944918,0.85538965,86.889,86.863,0.41495528]
[1773143946017,0.85538965,86.888,86.864,11.51224903]
[1773143948415,0.85538965,86.886,86.861,0.40969291]
[1773143950806,0.85538965,86.886,86.863,0.40766829]
[1773143952924,0.85538965,86.886,86.864,11.51224903]
[1773143953521,0.85538965,86.884,86.864,11.51224903]
[1773143955426,0.85538965,86.884,86.861,0.40089974]
[1773143956522,0.85538965,86.892,86.861,0.40089974]
[1773143957307,0.85538965,86.892,86.863,0.39811899]
[1773143958524,0.85538965,86.889,86.863,0.39811899]
[1773143960405,0.85538965,86.889,86.865,0.39405671]
[1773143961903,0.85538965,86.887,86.865,0.39405671]
[1773143962103,0.85538965,86.887,86.856,0.39273624]
[1773143962423,0.85538965,86.919,86.881,0.39143055]
[1773143962731,0.85538965,86.909,86.871,0.39143055]
[1773143963812,0.85538965,86.907,86.873,0.39014312]
[1773143965127,0.85538965,86.899,86.872,11.51118887]
[1773143965326,0.85538965,86.889,86.862,0.38761476]
[1773143965530,0.85538965,86.889,86.861,11.51264664]
[1773143966027,0.85538965,86.887,86.861,11.51264664]
[1773143967933,0.85538965,86.887,86.857,11.51317683]
[1773143968314,0.85538965,86.885,86.857,11.51317683]
[1773143969031,0.85538965,86.885,86.857,11.89709818]
[1773143970436,0.85538965,86.885,86.861,11.51264664]
[1773143970735,0.85538965,86.885,86.862,0.38154204]
[1773143971430,0.85538965,86.899,86.871,0.38036164]
[1773143971732,28.76352812,86.916,86.88,4.07102495]
[1773143971733,0.85538965,86.898,86.88,4.07102495]
[1773143971927,0.85538965,86.898,86.881,0.38036164]
[1773143972324,0.85538965,86.898,86.871,0.37919293]
[1773143972536,0.85538965,86.898,86.873,0.37919293]
[1773143973522,0.8341283,86.896,86.87,4.07102495]
[1773143973716,0.8341283,86.896,86.871,11.51132138]
[1773143973920,0.8341283,86.896,86.872,0.37692052]
[1773143974138,0.8341283,86.896,86.863,0.37579853]
[1773143974719,0.8341283,86.889,86.864,11.51224903]
[1773143974918,0.8341283,86.879,86.853,11.51370706]
[1773143977235,0.8341283,86.878,86.843,28.78745278]
[1773143977641,0.8341283,86.878,86.85,12.8]
[1773143980121,0.8341283,86.878,86.851,11.5139722]
[1773143980321,11.51052637,86.877,86.851,11.5139722]
[1773143980520,0.8341283,86.876,86.851,11.5139722]
[1773143982737,0.8341283,86.874,86.843,28.78745278]
[1773143983147,0.8341283,86.874,86.844,0.36627427]
[1773143984324,0.8341283,86.874,86.845,11.51476768]
[1773143985244,0.8341283,86.874,86.845,11.87905078]
[1773143987048,0.85615077,86.869,86.845,11.87905078]
[1773143987224,0.85615077,86.869,86.846,0.36139935]
[1773143989141,0.85615077,86.869,86.834,28.79033413]
[1773143989142,0.85615077,86.869,86.841,11.51529807]
[1773143989353,0.85615077,86.867,86.834,0.35952345]
[1773143989543,0.85615077,86.867,86.8,46.0828553]
[1773143989544,0.85615077,86.859,86.84,10.6]
[1773143989848,0.85615077,86.859,86.837,11.51570814]
[1773143991350,0.85615077,86.858,86.837,11.51570814]
[1773143992746,0.85615077,86.858,86.838,0.35678623]
[1773143993953,0.85615077,86.868,86.84,4.07354485]
[1773143994134,0.85615077,86.868,86.841,0.35590666]
[1773143994462,0.85615077,86.868,86.85,4.42857243]
[1773143994661,0.85615077,86.868,86.85,0.35502758]
[1773143995541,0.85615077,86.875,86.852,0.354159]
[1773143996057,0.85615077,86.885,86.86,0.354159]
[1773143996651,0.85615077,86.869,86.851,11.5139722]
[1773143997762,11.51171892,86.868,86.831,28.79147769]
[1773143997944,11.51171892,86.868,86.8,50.90763099]
[1773143997945,0.85615077,86.87,86.841,0.35245482]
[1773143998336,0.85615077,86.87,86.851,0.35161658]
[1773143999156,0.85615077,86.859,86.832,0.35079444]
[1773144000249,0.85615077,86.868,86.834,0.3499733]
[1773144000454,0.85615077,86.876,86.842,0.3499733]
[1773144001251,11.51053296,86.877,86.842,0.3499733]
[1773144001252,0.85615077,86.869,86.842,0.3499733]
[1773144001663,0.85615077,86.875,86.842,0.3499733]
[1773144001834,0.85615077,86.875,86.84,4.07354485]
[1773144001835,0.85615077,86.896,86.871,0.34915081]
[1773144002234,0.85615077,86.893,86.862,0.34834814]
[1773144005465,0.87329235,86.891,86.864,0.34520409]
[1773144007067,0.87329235,86.891,86.87,4.41799163]
[1773144007266,0.87329235,86.891,86.87,0.34444678]
[1773144007567,0.87329235,86.889,86.861,11.51263573]
[1773144007763,0.87329235,86.879,86.853,11.51370706]
[1773144007960,0.87329235,86.879,86.853,11.85740742]
[1773144008360,0.87329235,86.879,86.854,0.34296245]
[1773144008552,0.87329235,86.889,86.861,0.34296245]
[1773144008771,0.87329235,86.894,86.871,0.34296245]
[1773144009467,0.87329235,86.907,86.872,11.51118887]
[1773144009667,0.87329235,86.907,86.873,0.34223291]
[1773144010253,0.87329235,86.899,86.873,0.34223291]
[1773144010851,0.87329235,86.899,86.84,4.07354485]
[1773144011051,0.87329235,86.879,86.851,0.34150381]
[1773144011568,0.87329235,86.877,86.844,0.340791]
[1773144014469,0.87329235,86.877,86.845,11.51476768]
[1773144014774,0.87329235,86.877,86.846,0.33511819]
[1773144016077,0.87329235,86.883,86.86,4.07354485]
[1773144016276,0.87329235,86.883,86.861,0.33326504]
[1773144016470,0.87329235,86.883,86.853,11.84515431]
[1773144016793,0.87329235,86.883,86.854,0.33144725]
[1773144017085,0.87329235,86.879,86.853,11.51370706]
[1773144017876,0.87329235,86.869,86.847,0.6894699]
[1773144019057,0.87329235,86.869,86.841,11.51529807]
[1773144019764,0.87329235,86.869,86.841,12.20177341]
[1773144020778,0.87329235,86.859,86.826,0.68500398]
[1773144021454,0.87329235,86.857,86.827,0.68354177]
[1773144022205,0.87329235,86.857,86.83,4.07354485]
[1773144022382,0.87329235,86.857,86.831,0.68210214]
[1773144022560,0.87329235,86.857,86.83,4.07354485]
[1773144022561,0.87329235,86.867,86.833,0.68210214]
[1773144023775,0.87329235,86.867,86.834,11.51622636]
[1773144023981,11.51136398,86.871,86.841,0.68067006]
[1773144024483,0.87329235,86.869,86.835,0.67926083]
[1773144024681,0.87329235,86.859,86.834,11.51622636]
[1773144025690,11.51291173,86.859,86.836,11.51596112]
[1773144027593,0.87329235,86.858,86.836,11.51596112]
[1773144028090,0.87329235,86.858,86.837,0.84742742]
[1773144029967,0.87329235,86.856,86.836,11.51596112]
[1773144030277,11.51317683,86.857,86.821,0.84742742]
[1773144030278,0.87329235,86.849,86.821,0.84742742]
[1773144030674,0.87329235,86.849,86.822,0.84742742]
[1773144032492,0.87329235,86.849,86.824,0.84742742]
[1773144034077,0.83575912,86.847,86.824,0.84742742]
[1773144034784,0.83575912,86.847,86.823,11.5176854]
[1773144034989,0.83575912,86.845,86.821,0.81465251]
[1773144035185,0.83575912,86.856,86.821,0.81465251]
[1773144035393,0.83575912,86.856,86.831,0.81465251]
[1773144036787,4.07354485,86.86,86.832,11.51649161]
[1773144036788,11.51344194,86.855,86.832,11.51649161]
[1773144036990,0.83575912,86.854,86.833,0.81465251]
[1773144038801,4.0754818,86.88,86.843,0.81465251]
[1773144038802,0.83575912,86.88,86.843,0.81465251]
[1773144038992,12.34600458,86.88,86.851,0.81465251]
[1773144039305,0.83575912,86.879,86.851,0.81465251]
[1773144040798,0.83575912,86.879,86.852,11.51383963]
[1773144041100,0.83575912,86.879,86.853,0.81465251]
[1773144041501,51.82,86.901,86.861,0.81465251]
[1773144041502,0.83575912,86.885,86.861,0.81465251]
[1773144042908,0.83575912,86.885,86.863,0.81465251]
[1773144043607,0.83575912,86.883,86.862,11.5125141]
[1773144043782,0.83575912,86.883,86.862,12.32716661]
[1773144043988,0.83575912,86.883,86.863,0.81465251]
[1773144045105,0.83575912,86.883,86.865,0.81920428]
[1773144046611,0.83575912,86.883,86.866,11.51198397]
[1773144048613,0.83575912,86.883,86.861,12.33185092]
[1773144048806,0.88546339,86.888,86.862,0.81920428]
[1773144049586,11.50865853,86.892,86.862,0.81920428]
[1773144050001,0.88546339,86.891,86.862,0.81920428]
[1773144050505,0.88546339,86.891,86.863,11.51238156]
[1773144050808,0.88546339,86.891,86.864,0.81920428]
[1773144052298,0.88546339,86.889,86.863,11.51238156]
[1773144052593,0.88546339,86.887,86.863,11.51238156]
[1773144053305,0.88546339,86.887,86.864,0.81920428]
[1773144053695,0.88546339,86.908,86.871,0.81920428]
[1773144054903,0.88546339,86.899,86.873,0.81920428]
[1773144057610,0.88546339,86.897,86.872,11.51118887]
[1773144057814,0.88546339,86.897,86.873,0.81920428]
[1773144058315,0.88546339,86.889,86.862,0.81920428]
[1773144058696,0.88546339,86.889,86.861,11.51264664]
[1773144059818,0.88546339,86.887,86.858,11.51304427]
[1773144060219,0.88546339,86.887,86.858,12.33224855]
[1773144060400,0.88546339,86.887,86.859,0.81920428]
[1773144060922,0.88546339,86.879,86.854,11.51348688]
[1773144061418,0.88546339,86.879,86.839,28.78862746]
[1773144061419,0.88546339,86.879,86.851,11.5139722]
[1773144061604,0.88546339,86.879,86.851,12.33317648]
[1773144061916,0.88546339,86.879,86.852,0.81920428]
[1773144062318,0.88546339,86.877,86.851,11.5139722]
[1773144062918,0.88546339,86.877,86.851,12.33317648]
[1773144063422,0.88546339,86.875,86.852,0.81920428]
[1773144064017,11.51065887,86.876,86.854,0.81125241]
[1773144064204,11.51012594,86.881,86.854,0.81125241]
[1773144064617,12.30594546,86.881,86.854,0.81125241]
[1773144064821,0.79581952,86.88,86.854,0.81125241]
[1773144065599,0.79581952,86.878,86.855,11.51344194]
[1773144065799,0.79581952,86.878,86.856,0.81125241]
[1773144067827,0.79581952,86.878,86.858,0.81125241]
[1773144069621,11.51026139,86.879,86.858,0.81125241]
[1773144069827,0.79581952,86.899,86.86,4.0754818]
[1773144070140,0.79581952,86.879,86.851,0.81125241]
[1773144071515,0.79581952,86.879,86.853,0.81125241]
[1773144071714,11.51039388,86.878,86.853,0.81125241]
[1773144071921,0.79581952,86.877,86.853,0.81125241]
[1773144073640,0.79581952,86.877,86.855,0.81125241]
[1773144075229,0.79581952,86.877,86.856,12.32456179]
[1773144075809,0.79581952,86.877,86.857,0.81125241]
[1773144076824,0.79581952,86.889,86.857,0.81125241]
[1773144077119,0.79581952,86.888,86.859,0.81125241]
[1773144078319,0.79581952,86.888,86.854,11.51353965]
[1773144078522,0.79581952,86.879,86.854,11.51353965]
[1773144079922,0.79581952,86.877,86.851,0.81125241]
[1773144082147,0.79581952,86.869,86.821,0.97391355]
[1773144082318,0.79581952,86.859,86.831,0.81125241]
[1773144084524,0.79581952,86.859,86.833,0.81125241]
[1773144086836,0.79581952,86.859,86.835,0.81125241]
[1773144087220,0.79581952,86.849,86.82,0.2]
[1773144087422,0.79581952,86.839,86.821,11.51795072]
[1773144087842,0.79581952,86.839,86.82,0.2]
[1773144088760,0.79581952,86.839,86.821,11.51795072]
[1773144089243,0.79581952,86.839,86.822,0.81125241]
[1773144089785,0.79581952,86.839,86.82,0.2]
[1773144090041,0.79581952,86.837,86.82,0.2]
[1773144091545,0.79581952,86.835,86.82,0.2]
[1773144093725,0.798729,86.839,86.82,0.2]
[1773144093926,0.798729,86.839,86.821,11.51795072]
[1773144094541,0.798729,86.839,86.82,0.2]
[1773144095248,4.0754818,86.83,86.82,0.2]
[1773144096155,0.798729,86.829,86.82,0.2]
[1773144097226,12.31561851,86.829,86.798,0.87406638]
[1773144097431,0.798729,86.809,86.791,12.39599837]
[1773144097625,0.798729,86.809,86.791,11.52193199]
[1773144097851,0.798729,86.809,86.792,0.87406638]
[1773144098047,4.08037757,86.81,86.794,0.87406638]
[1773144098234,11.51846332,86.818,86.794,0.87406638]
[1773144098436,4.08037757,86.82,86.794,0.87406638]
[1773144098757,0.798729,86.829,86.801,0.87406638]
[1773144099458,0.798729,86.836,86.81,4.08037757]
[1773144099766,0.798729,86.848,86.82,4.08037757]
[1773144099935,28.7795871,86.868,86.831,11.51662424]
[1773144100144,0.798729,86.867,86.831,11.51662424]
[1773144100336,0.798729,86.867,86.823,28.79403305]
[1773144100337,0.798729,86.839,86.803,0.87406638]
[1773144100846,0.798729,86.839,86.802,11.52047187]
[1773144100847,4.08037757,86.85,86.813,0.87406638]
[1773144101033,4.08037757,86.85,86.821,0.87406638]
[1773144101445,0.798729,86.849,86.821,0.87406638]
[1773144102288,0.798729,86.863,86.823,0.87406638]
[1773144102438,0.798729,86.863,86.822,40.31236322]
[1773144102439,4.87910657,86.86,86.831,0.87406638]
[1773144102750,0.798729,86.867,86.831,0.87406638]
[1773144104438,0.798729,86.865,86.833,0.87406638]
[1773144109381,0.87242928,86.849,86.829,11.51686998]
[1773144109559,0.87242928,86.849,86.829,9.51686998]
[1773144110279,0.87242928,86.849,86.829,10.38015765]
[1773144110469,0.87242928,86.849,86.83,0.86328767]
[1773144111674,0.87242928,86.849,86.82,28.79502482]
[1773144111881,0.87242928,86.847,86.825,0.86328767]
[1773144112675,0.87242928,86.839,86.817,0.86328767]
[1773144113780,0.87242928,86.839,86.819,0.86328767]
[1773144115082,0.87242928,86.839,86.821,0.86328767]
[1773144118088,0.87242928,86.844,86.823,0.86328767]
[1773144123473,0.87242928,86.844,86.821,11.51788135]
[1773144123474,4.08037757,86.85,86.825,0.86328767]
[1773144123785,0.79525246,86.878,86.841,0.8101154]
[1773144126988,0.79525246,86.876,86.843,0.8101154]
[1773144128587,0.79525246,86.874,86.845,0.8101154]
[1773144129774,0.79525246,86.874,86.85,4.08037757]
[1773144129988,0.79525246,86.874,86.851,0.8101154]
[1773144131399,0.79525246,86.874,86.853,0.8101154]
[1773144132684,11.51105636,86.873,86.853,0.8101154]
[1773144132992,0.79525246,86.872,86.853,0.8101154]
[1773144135269,28.77384783,86.885,86.861,0.8101154]
[1773144135270,0.79525246,86.885,86.861,0.8101154]
[1773144138003,0.79525246,86.885,86.862,11.5125141]
[1773144138204,0.79525246,86.885,86.863,0.8101154]
[1773144140409,0.79525246,86.885,86.862,11.5125141]
[1773144140410,0.79525246,86.885,86.865,0.8101154]
[1773144142208,0.79525246,86.885,86.866,11.51198397]
[1773144142509,0.79525246,86.885,86.867,0.8101154]
[1773144143522,63.34784256,86.898,86.862,0.8101154]
[1773144143677,51.84,86.898,86.881,0.8101154]
[1773144144618,0.79525246,86.919,86.891,0.8101154]
[1773144146712,0.79525246,86.917,86.893,0.8101154]
[1773144146882,0.79525246,86.917,86.892,11.50853933]
[1773144147081,0.79525246,86.917,86.887,0.8101154]
[1773144147283,0.79525246,86.909,86.874,0.8101154]
[1773144147503,0.79525246,86.9,86.874,0.8101154]
[1773144148089,0.79525246,86.899,86.874,0.8101154]
[1773144148606,11.50774471,86.898,86.874,0.8101154]
[1773144148807,0.79525246,86.889,86.858,0.8101154]
[1773144149114,0.79525246,86.879,86.858,0.8101154]
[1773144149406,0.79525246,86.879,86.854,11.5135745]
[1773144149606,0.79525246,86.879,86.855,0.8101154]
[1773144149831,0.79525246,86.879,86.854,11.5135745]
[1773144150014,0.79525246,86.869,86.838,0.8101154]
[1773144150182,0.79525246,86.869,86.84,0.8101154]
[1773144151193,0.79525246,86.869,86.842,0.8101154]
[1773144152914,4.08037757,86.88,86.851,0.8101154]
[1773144153103,0.79525246,86.888,86.851,0.8101154]
[1773144153412,0.79525246,86.886,86.853,0.8101154]
[1773144154585,0.79525246,86.886,86.861,0.78847971]
[1773144156014,0.7790752,86.884,86.862,11.5125141]
[1773144156510,0.7790752,86.884,86.862,12.30099381]
[1773144158987,11.50973147,86.883,86.862,12.30099381]
[1773144159305,0.7790752,86.882,86.862,12.30099381]
[1773144159614,0.7790752,86.882,86.862,0.78847971]
[1773144161089,0.7790752,86.88,86.851,0.78847971]
[1773144161508,0.7790752,86.88,86.852,0.78847971]
[1773144162906,0.7790752,86.879,86.854,0.78847971]
[1773144164503,0.7790752,86.884,86.854,0.78847971]
[1773144166309,0.82485443,86.879,86.856,0.81419022]
[1773144167696,0.82485443,86.879,86.858,0.81419022]
[1773144168408,0.82485443,86.884,86.858,0.81419022]
[1773144169311,0.82485443,86.883,86.858,0.81419022]
[1773144169520,11.50962099,86.884,86.858,0.81419022]
[1773144169521,0.82485443,86.879,86.858,0.81419022]
[1773144169713,0.82485443,86.879,86.859,11.51291173]
[1773144169922,0.82485443,86.879,86.859,12.32710195]
[1773144171500,0.82485443,86.879,86.86,0.81419022]
[1773144173827,0.82485443,86.879,86.862,0.81419022]
[1773144174631,0.82485443,86.878,86.857,0.81419022]
[1773144175912,0.82485443,86.878,86.858,11.51304427]
[1773144176802,0.82485443,86.876,86.858,12.32723449]
[1773144177022,0.82485443,86.876,86.859,0.81419022]
[1773144178507,0.82485443,86.874,86.857,11.51316758]
[1773144179407,0.82485443,86.874,86.853,0.81419022]
[1773144179617,0.82485443,86.874,86.854,0.81419022]
[1773144180012,0.82485443,86.869,86.841,11.51529807]
[1773144180505,12.33564579,86.875,86.841,40.30354325]
[1773144180709,0.82485443,86.874,86.841,40.30354325]
[1773144181333,0.82485443,86.869,86.841,11.51529807]
[1773144182721,0.82485443,86.869,86.84,4.07319129]
[1773144182922,0.82485443,86.879,86.851,0.81419022]
[1773144183122,0.82485443,86.878,86.851,0.81419022]
[1773144184245,0.75789237,86.884,86.851,0.81419022]
[1773144184528,0.75789237,86.892,86.861,0.80769211]
[1773144185915,0.75789237,86.889,86.862,12.32020621]
[1773144188332,11.50906914,86.888,86.862,12.32020621]
[1773144188511,0.75789237,86.887,86.862,12.32020621]
[1773144188930,0.75789237,86.887,86.862,11.5125141]
[1773144189130,0.75789237,86.887,86.863,0.80769211]
[1773144191635,4.07319129,86.89,86.863,0.80769211]
[1773144191636,11.50933406,86.886,86.863,0.80769211]
[1773144191932,0.75789237,86.885,86.863,0.80769211]
[1773144192731,0.75789237,86.885,86.864,11.51224903]
[1773144195131,11.509599,86.884,86.864,11.51224903]
[1773144195330,0.75789237,86.883,86.864,11.51224903]
[1773144197130,0.75789237,86.883,86.861,0.80769211]
[1773144200628,0.75789237,86.883,86.862,11.5125141]
[1773144200831,0.75789237,86.881,86.858,11.5129851]
[1773144201024,0.75789237,86.869,86.847,11.51450251]
[1773144202379,0.75789237,86.869,86.848,0.80406247]
[1773144203142,12.42644452,86.912,86.85,0.80271201]
[1773144203342,12.42644452,86.912,86.865,0.80271201]
[1773144203343,0.75789237,86.899,86.865,0.80271201]
[1773144203521,0.75789237,86.889,86.82,0.8013848]
[1773144203728,0.75789237,86.869,86.841,0.8013848]
[1773144205545,0.75789237,86.869,86.843,0.79876717]
[1773144206829,0.75789237,86.869,86.845,0.79748365]
[1773144208646,0.75789237,86.869,86.851,11.5139722]
[1773144210152,0.75789237,86.869,86.851,12.30769245]
[1773144212030,0.75789237,86.869,86.853,11.51370706]
[1773144212848,0.75789237,86.869,86.85,5.2]
[1773144213031,0.75789237,86.867,86.844,11.51479477]
[1773144213954,0.76754375,86.865,86.837,11.5158285]
[1773144214249,0.76754375,86.865,86.837,12.25907148]
[1773144215246,0.76754375,86.859,86.837,11.5158285]
[1773144215657,11.51224903,86.864,86.792,0.74324298]
[1773144215658,0.16266114,86.848,86.792,0.74324298]
[1773144215955,0.76754375,86.829,86.792,0.74324298]
[1773144216655,0.76754375,86.829,86.8,2.6]
[1773144216950,0.76754375,86.829,86.797,0.74324298]
[1773144217836,0.76754375,86.827,86.798,0.74324298]
[1773144219651,0.76754375,86.825,86.798,0.74324298]
[1773144221539,0.76754375,86.823,86.798,0.74324298]
[1773144227762,0.75216834,86.821,86.798,0.74324298]
[1773144229664,11.51781806,86.822,86.798,0.74324298]
[1773144229665,0.75216834,86.819,86.798,0.74324298]
[1773144230768,0.75216834,86.817,86.798,0.74324298]
[1773144230972,0.75216834,86.809,86.79,0.2]
[1773144231756,0.75216834,86.809,86.791,11.52193199]
[1773144233573,0.75216834,86.807,86.79,0.2]
[1773144234068,0.75216834,86.807,86.786,12.28858855]
[1773144234276,0.75216834,86.789,86.684,46.14418596]
[1773144234477,0.75216834,86.783,86.721,28.82791034]
[1773144234652,0.75216834,86.776,86.741,11.52857356]
[1773144234967,4.0785758,86.8,86.761,0.79130138]
[1773144235171,4.0785758,86.78,86.761,0.79130138]
[1773144235367,4.0785758,86.78,86.742,0.79130138]
[1773144235669,15.60200391,86.78,86.751,0.79130138]
[1773144236858,16.35417225,86.78,86.751,0.79130138]
[1773144237373,0.75216834,86.779,86.751,0.79130138]
[1773144237770,49.7683968,86.816,86.761,0.79130138]
[1773144237771,0.75216834,86.788,86.761,0.79130138]
[1773144238073,0.75216834,86.809,86.771,0.79130138]
[1773144238271,0.75216834,86.796,86.771,0.79130138]
[1773144241158,0.75216834,86.796,86.773,0.79130138]
[1773144241374,28.79323548,86.826,86.791,0.79130138]
[1773144241876,11.51834872,86.818,86.791,0.79130138]
[1773144243476,11.51834872,86.818,86.793,0.79130138]
[1773144243783,0.74985637,86.817,86.793,0.79130138]
[1773144246077,0.74985637,86.815,86.793,0.79130138]
[1773144247180,28.79323548,86.826,86.78,6.6785758]
[1773144247181,0.74985637,86.826,86.795,0.79418977]
[1773144247479,11.51777661,86.823,86.801,0.79418977]
[1773144249974,0.74985637,86.824,86.803,0.79418977]
[1773144250283,11.5176854,86.823,86.803,0.79418977]
[1773144254380,0.74985637,86.823,86.803,0.79418977]
[1773144255181,0.74985637,86.819,86.791,0.79418977]
[1773144257788,0.74985637,86.819,86.753,102.5]
[1773144257789,0.74985637,86.799,86.774,0.79418977]
[1773144258087,0.74985637,86.789,86.762,0.79418977]
[1773144258884,0.74985637,86.779,86.761,11.52591602]
[1773144259564,0.74985637,86.767,86.741,11.52857356]
[1773144259790,0.74985637,86.759,86.74,0.1]
[1773144259988,0.74985637,86.754,86.74,0.1]
[1773144262407,0.74985637,86.749,86.73,0.2]
[1773144264570,4.0785758,86.74,86.73,0.2]
[1773144264769,4.0785758,86.74,86.711,0.79418977]
[1773144264770,0.74985637,86.739,86.711,0.79418977]
[1773144264990,0.74985637,86.739,86.712,0.79418977]
[1773144265589,0.74985637,86.729,86.71,0.1]
[1773144265985,0.74985637,86.719,86.7,0.1]
[1773144266370,0.74985637,86.719,86.692,11.53507131]
[1773144266590,0.74985637,86.717,86.692,0.79418977]
[1773144266969,0.74985637,86.709,86.69,0.1]
[1773144267697,11.53163126,86.718,86.691,0.79418977]
[1773144267698,12.28148763,86.718,86.691,0.79418977]
[1773144267876,0.74985637,86.717,86.691,0.79418977]
[1773144268494,4.0785758,86.72,86.691,0.79418977]
[1773144268677,0.74985637,86.725,86.693,0.79418977]
[1773144268873,0.74985637,86.724,86.693,0.79418977]
[1773144269591,0.74985637,86.724,86.701,0.79418977]
[1773144270389,11.53019064,86.729,86.692,40.37281409]
[1773144270390,0.74985637,86.719,86.695,0.79418977]
[1773144270768,0.74985637,86.717,86.695,0.79418977]
[1773144271284,0.74985637,86.719,86.697,0.79418977]
[1773144271490,0.74985637,86.718,86.691,0.79418977]
[1773144272085,0.74985637,86.718,86.693,0.79418977]
[1773144272775,0.74985637,86.718,86.69,0.89418977]
[1773144272975,0.74985637,86.716,86.692,0.79418977]
[1773144273190,0.74985637,86.716,86.69,0.1]
[1773144273394,0.74985637,86.709,86.69,0.1]
[1773144274393,0.77061935,86.716,86.692,0.80950406]
[1773144275375,0.77061935,86.716,86.69,0.1]
[1773144275376,4.0785758,86.72,86.693,12.34446074]
[1773144275575,4.0785758,86.72,86.69,0.1]
[1773144275808,4.0785758,86.72,86.691,0.80950406]
[1773144275976,4.0785758,86.73,86.701,0.80950406]
[1773144277286,11.53030163,86.728,86.701,0.80950406]
[1773144277599,4.0785758,86.72,86.701,0.80950406]
[1773144277780,0.5950061,86.722,86.701,0.80950406]
[1773144278977,0.59630072,86.719,86.692,0.80950406]
[1773144279508,0.59757149,86.709,86.69,0.1]
[1773144282101,11.5329612,86.708,86.69,0.1]
[1773144282309,0.60007918,86.707,86.69,0.1]
[1773144282796,11.5329612,86.708,86.68,0.1]
[1773144282797,0.60130763,86.699,86.68,0.1]
[1773144283905,0.60130763,86.699,86.681,11.53655356]
[1773144284405,0.60251423,86.697,86.68,0.1]
[1773144285906,11.53455753,86.696,86.68,0.1]
[1773144287299,11.53482363,86.694,86.68,0.1]
[1773144287502,0.60839688,86.693,86.68,0.1]
[1773144287995,4.09022111,86.69,86.67,0.1]
[1773144288202,0.60839688,86.689,86.67,0.1]
[1773144288584,0.60839688,86.689,86.667,11.53836577]
[1773144288585,0.50953471,86.679,86.66,0.1]
[1773144288984,4.59975582,86.67,86.651,0.7579466]
[1773144289185,4.59975582,86.67,86.65,0.1]
[1773144289186,0.50953471,86.669,86.65,0.1]
[1773144289400,11.53828402,86.668,86.65,0.1]
[1773144289914,0.51072823,86.686,86.651,0.7579466]
[1773144290095,4.09022111,86.69,86.651,0.7579466]
[1773144290502,0.51191084,86.689,86.651,0.7579466]
[1773144291205,4.09022111,86.72,86.652,11.54041453]
[1773144291206,4.09022111,86.68,86.652,11.54041453]